bitfinex/quotes_SOLUSD_20251001
["timestamp","ask_amount","ask_price","bid_price","bid_amount"]
[1759331370599,3.04027639,219.11,219.1,0.1]
[1759331371101,3.71027639,219.11,219.1,0.1]
[1759331371310,3.04027639,219.11,219.1,0.1]
[1759331371774,3.32459953,219.11,219.1,0.1]
[1759331372165,7.88851719,219.11,219.1,0.1]
[1759331372888,8.55851719,219.11,219.1,0.1]
[1759331373882,5.5182408,219.11,219.1,0.1]
[1759331374386,12.37131582,219.11,219.1,0.1]
[1759331374784,17.4251442,219.11,219.1,0.1]
[1759331374967,12.37131582,219.11,219.1,0.1]
[1759331375167,6.00815152,219.11,219.1,0.1]
[1759331375476,6.00815152,219.11,219.02,27.41735537]
[1759331375477,20.8,219.08,219.02,27.41735537]
[1759331375678,5.05382838,219.04,219.02,27.41735537]
[1759331375873,0.28432314,219.07,219.03,0.66]
[1759331376092,5.05382838,219.06,219.03,0.66]
[1759331376294,3.04786415,219.05,219.03,0.66]
[1759331376512,8.10169253,219.06,219.03,0.66]
[1759331376888,8.10169253,219.06,219.02,27.41735537]
[1759331376889,0.5,219.04,219.02,27.41735537]
[1759331377204,5.55382838,219.04,219.02,28.07735537]
[1759331377405,5.55382838,219.04,219.02,27.41735537]
[1759331377698,5.55382838,219.04,219.03,0.66]
[1759331377903,3.04786415,219.08,219.03,0.66]
[1759331378219,20.8,219.08,219.03,0.66]
[1759331378398,0.14216157,219.09,219.04,0.66]
[1759331378595,5.05382838,219.08,219.05,32.74]
[1759331378810,5.05382838,219.08,219.05,33.4]
[1759331379511,5.05382838,219.08,219.06,0.66]
[1759331379889,20.8,219.08,219.06,0.66]
[1759331380090,3.04585451,219.11,219.07,0.66]
[1759331380313,13.57611103,219.12,219.08,0.66]
[1759331380490,5.05382838,219.14,219.09,33.38]
[1759331380689,5.05382838,219.14,219.1,0.66]
[1759331380909,5.05382838,219.14,219.09,32.72]
[1759331380910,13.542013,219.14,219.11,0.66]
[1759331381092,4.56288758,219.16,219.11,0.66]
[1759331381288,5.05382838,219.16,219.12,0.66]
[1759331381497,9.61678535,219.16,219.13,32.74]
[1759331381910,5.05382838,219.16,219.13,32.74]
[1759331382299,5.05382838,219.15,219.13,32.74]
[1759331383004,18.38019853,219.16,219.13,32.74]
[1759331383207,5.05382838,219.15,219.13,32.74]
[1759331383404,9.61712125,219.14,219.13,32.74]
[1759331383592,5.05382838,219.14,219.13,32.74]
[1759331383905,5.33815152,219.15,219.13,32.74]
[1759331384106,16.86349496,219.16,219.14,32.72]
[1759331384419,21.58733424,219.16,219.14,32.72]
[1759331385316,17.02444767,219.16,219.14,32.72]
[1759331385516,13.81731515,219.16,219.14,32.72]
[1759331385821,0.28432314,219.16,219.14,32.72]
[1759331386014,20.8,219.15,219.14,32.72]
[1759331386212,14.18715065,219.16,219.14,32.72]
[1759331386398,0.28432314,219.16,219.14,32.72]
[1759331386595,20.8,219.15,219.14,32.72]
[1759331387510,3.7174682,219.22,219.14,37.94326419]
[1759331387709,20.8,219.17,219.15,0.66]
[1759331388520,20.8,219.17,219.14,32.72]
[1759331388720,3.49145566,219.15,219.09,0.66]
[1759331389025,3.49145566,219.15,219.1,32.68]
[1759331389026,3.20713252,219.12,219.1,32.68]
[1759331389602,7.77086208,219.12,219.1,32.68]
[1759331390220,0.5,219.11,219.1,32.68]
[1759331391425,0.78432314,219.11,219.1,32.68]
[1759331391628,5.3482408,219.11,219.1,32.68]
[1759331391816,0.78432314,219.11,219.1,32.68]
[1759331392127,5.3482408,219.11,219.1,32.68]
[1759331392503,0.78432314,219.11,219.1,32.68]
[1759331393027,0.5,219.11,219.1,33.34]
[1759331393322,7.77063927,219.13,219.1,32.68]
[1759331393529,20.8,219.12,219.1,32.68]
[1759331393816,24.00713252,219.12,219.05,4.56502567]
[1759331394004,3.20713252,219.1,219.06,32.66]
[1759331394423,3.91713252,219.1,219.06,32.66]
[1759331395023,3.91713252,219.09,219.02,28.12735537]
[1759331395326,0.5,219.08,219.03,32.68]
[1759331395511,0.5,219.08,219.04,0.71]
[1759331395819,0.5,219.08,219.05,0.71]
[1759331396325,0.5,219.08,219.03,48.65952747]
[1759331396507,0.5,219.08,219.06,0.48165]
[1759331396714,0.5,219.08,219.07,32.7]
[1759331398121,0.5,219.08,219.07,37.26475099]
[1759331398629,0.5,219.08,219.07,37.97475099]
[1759331398807,11.53276803,219.16,219.07,51.570345]
[1759331399010,8.48019263,219.16,219.08,0.71]
[1759331399209,0.14216157,219.15,219.08,0.71]
[1759331399511,0.28432314,219.15,219.08,0.71]
[1759331399713,4.8475632,219.15,219.09,4.56433429]
[1759331399929,4.8475632,219.15,219.1,32.68]
[1759331400123,4.8475632,219.15,219.1,33.39]
[1759331400307,3.91713252,219.14,219.1,32.68]
[1759331400504,20.8,219.12,219.1,32.68]
[1759331401428,13.49224656,219.17,219.11,0.71]
[1759331401621,4.56228258,219.19,219.11,0.71]
[1759331401817,0.28432314,219.18,219.12,4.56370938]
[1759331402027,20.8,219.17,219.12,5.27370938]
[1759331402204,34.28403293,219.17,219.13,0.71]
[1759331402530,4.20145566,219.16,219.14,32.68]
[1759331402735,4.20145566,219.15,219.14,32.68]
[1759331403111,0.99432314,219.15,219.14,32.68]
[1759331403505,4.20145566,219.15,219.14,32.68]
[1759331403734,8.7645403,219.15,219.14,32.68]
[1759331404032,20.8,219.12,219.11,32.7]
[1759331405100,20.8,219.12,219.11,33.41]
[1759331405528,20.8,219.12,219.11,32.7]
[1759331407037,20.8,219.12,219.11,33.41]
[1759331407203,20.8,219.13,219.11,33.41]
[1759331407551,0.28432314,219.15,219.11,33.41]
[1759331407831,20.8,219.13,219.12,0.71]
[1759331408517,25.64749744,219.15,219.11,32.7]
[1759331408724,13.48403293,219.17,219.12,0.71]
[1759331408925,13.48403293,219.17,219.11,32.7]
[1759331408926,20.8,219.17,219.13,0.71]
[1759331409225,4.56246007,219.18,219.14,33.39]
[1759331409427,0.71,219.17,219.14,32.68]
[1759331409923,7.76959259,219.18,219.14,32.68]
[1759331411112,8.47959259,219.18,219.14,32.68]
[1759331411318,0.71,219.17,219.14,32.68]
[1759331411729,7.76959259,219.18,219.15,0.71]
[1759331411940,4.56246007,219.18,219.14,32.68]
[1759331412114,4.56246007,219.18,219.14,33.39]
[1759331412444,20.8,219.17,219.14,33.39]
[1759331412820,20.8,219.17,219.14,32.68]
[1759331413357,4.56287643,219.16,219.14,32.68]
[1759331414547,20.8,219.16,219.15,0.71]
[1759331414748,20.8,219.17,219.15,0.71]
[1759331416637,11.38226219,219.2,219.16,0.71]
[1759331416638,13.51141168,219.18,219.16,0.71]
[1759331416844,7.18080653,219.2,219.16,0.71]
[1759331417066,7.18080653,219.2,219.17,0.71]
[1759331417246,7.18080653,219.2,219.18,32.62]
[1759331417447,11.74285658,219.2,219.18,32.62]
[1759331417755,7.18080653,219.2,219.18,32.62]
[1759331418158,7.18080653,219.2,219.19,32.62]
[1759331418534,11.74285032,219.2,219.19,32.62]
[1759331419359,7.18080653,219.2,219.19,32.62]
[1759331419547,20.95590651,219.2,219.19,32.62]
[1759331420161,25.5179503,219.2,219.19,32.62]
[1759331420938,20.95590651,219.2,219.19,32.62]
[1759331422052,25.5179503,219.2,219.19,32.62]
[1759331422370,20.95590651,219.2,219.19,32.62]
[1759331423046,25.5179503,219.2,219.19,32.62]
[1759331423556,20.95590651,219.2,219.19,32.62]
[1759331426878,29.44508282,219.2,219.19,32.54]
[1759331427164,29.44508282,219.2,219.13,0.72]
[1759331427165,40.8501923,219.2,219.13,0.72]
[1759331427378,20.8,219.17,219.13,0.72]
[1759331427540,20.8,219.17,219.14,32.54]
[1759331427741,20.8,219.17,219.14,33.26]
[1759331428559,20.8,219.17,219.15,0.72]
[1759331428762,3.20713252,219.18,219.11,0.72]
[1759331428972,3.20713252,219.18,219.12,33.24]
[1759331429161,3.20713252,219.18,219.13,33.24]
[1759331429358,3.20713252,219.18,219.13,32.52]
[1759331429551,5.28235081,219.19,219.14,0.72]
[1759331429885,3.92713252,219.18,219.14,0.72]
[1759331430178,25.36266824,219.17,219.14,0.72]
[1759331431045,25.36266824,219.17,219.13,32.52]
[1759331431246,20.8,219.17,219.13,32.52]
[1759331431554,20.8,219.17,219.13,33.24]
[1759331431958,20.8,219.17,219.13,32.52]
[1759331431959,21.52,219.17,219.13,32.52]
[1759331432156,4.56287643,219.16,219.13,32.52]
[1759331432358,3.92713252,219.15,219.09,0.72]
[1759331432576,3.92713252,219.15,219.1,32.5]
[1759331432882,0.72,219.14,219.1,32.5]
[1759331433047,3.20713252,219.15,219.1,33.22]
[1759331433254,3.20713252,219.13,219.11,32.52]
[1759331433764,0.72,219.12,219.11,32.52]
[1759331434157,4.56329287,219.14,219.11,32.52]
[1759331434379,3.92713252,219.13,219.06,0.72]
[1759331434576,3.92713252,219.13,219.07,32.54]
[1759331434766,0.72,219.12,219.07,32.54]
[1759331434966,0.72,219.11,219.07,32.54]
[1759331435468,0.5,219.1,219.07,33.26]
[1759331435672,24.00713252,219.14,219.08,0.72]
[1759331436481,3.20713252,219.14,219.08,5.28451191]
[1759331436684,3.20713252,219.14,219.09,33.24]
[1759331436864,7.77043147,219.14,219.09,32.52]
[1759331437058,7.77043147,219.14,219.1,0.72]
[1759331437367,8.49043147,219.14,219.09,32.52]
[1759331437567,8.49043147,219.14,219.09,33.24]
[1759331438083,7.77043147,219.14,219.1,0.72]
[1759331439558,8.49043147,219.14,219.1,0.72]
[1759331440472,8.49043147,219.14,219.09,32.52]
[1759331440671,8.49043147,219.14,219.09,33.24]
[1759331440873,8.49043147,219.14,219.1,0.72]
[1759331441068,3.92713252,219.13,219.09,32.52]
[1759331441280,0.72,219.12,219.09,32.52]
[1759331441466,3.20713252,219.13,219.09,32.52]
[1759331441661,3.92713252,219.13,219.09,32.52]
[1759331441876,3.20713252,219.13,219.09,32.52]
[1759331442166,3.92713252,219.13,219.09,32.52]
[1759331442356,3.92713252,219.13,219.09,33.24]
[1759331442758,0.72,219.15,219.1,0.72]
[1759331443071,0.72,219.15,219.11,0.72]
[1759331443464,3.20713252,219.15,219.09,32.52]
[1759331443658,0.72,219.14,219.09,32.52]
[1759331443864,0.72,219.13,219.09,32.52]
[1759331444170,3.92713252,219.13,219.09,32.52]
[1759331444476,3.92713252,219.13,219.09,33.24]
[1759331445098,3.20713252,219.13,219.09,33.24]
[1759331445275,7.77055239,219.14,219.09,33.24]
[1759331445471,8.49055239,219.14,219.09,33.24]
[1759331446368,7.33633313,219.14,219.09,33.24]
[1759331446863,6.61633313,219.14,219.09,33.24]
[1759331447060,7.33633313,219.14,219.09,33.24]
[1759331447487,11.69151423,219.16,219.1,5.28412596]
[1759331447488,0.28432314,219.16,219.1,5.28412596]
[1759331447685,0.72,219.18,219.11,0.72]
[1759331447686,4.56246007,219.18,219.11,0.72]
[1759331447887,0.28432314,219.17,219.11,0.72]
[1759331448591,23.1372364,219.17,219.11,0.72]
[1759331449289,4.56287643,219.16,219.11,0.72]
[1759331449487,5.28287643,219.16,219.11,0.72]
[1759331449671,0.72,219.15,219.08,0.72]
[1759331449868,2.77291326,219.15,219.08,5.28450887]
[1759331450074,2.77291326,219.15,219.09,32.44]
[1759331450895,2.05291326,219.14,219.09,32.44]
[1759331451188,2.77291326,219.14,219.09,33.16]
[1759331451387,2.77291326,219.14,219.1,0.72]
[1759331451605,25.36309592,219.15,219.09,32.44]
[1759331451906,25.36309592,219.15,219.1,0.72]
[1759331452195,4.56309592,219.15,219.1,0.72]
[1759331452409,0.72,219.14,219.1,0.72]
[1759331453393,4.56350111,219.13,219.07,0.68]
[1759331453577,5.26350111,219.13,219.11,32.42]
[1759331453771,0.7,219.12,219.06,0.68]
[1759331453976,0.5,219.11,219.06,0.68]
[1759331454186,0.5,219.11,219.07,32.42]
[1759331454500,0.5,219.11,219.07,33.1]
[1759331454880,1.2,219.11,219.07,32.42]
[1759331455079,0.7,219.1,219.04,0.68]
[1759331455401,4.56433429,219.09,219.05,32.42]
[1759331455585,4.56433429,219.09,219.05,0.68]
[1759331455785,4.56433429,219.09,219.06,32.42]
[1759331456098,0.7,219.08,219.07,32.42]
[1759331456269,6.61724755,219.09,219.07,32.42]
[1759331456689,7.31724755,219.09,219.07,32.42]
[1759331456888,5.26433429,219.09,219.07,32.42]
[1759331458084,15.97455364,219.1,219.07,32.42]
[1759331458300,18.7274669,219.1,219.07,32.42]
[1759331458500,18.0274669,219.1,219.07,32.42]
[1759331458686,18.7274669,219.1,219.07,32.42]
[1759331460510,2.05291326,219.08,219.07,32.38]
[1759331461009,0.7,219.08,219.07,32.38]
[1759331461199,4.56412596,219.1,219.07,32.38]
[1759331461583,0.7,219.09,219.07,32.38]
[1759331461780,4.56412596,219.1,219.07,32.38]
[1759331462112,2.75291326,219.09,219.07,32.38]
[1759331462281,16.96022235,219.08,219.02,28.09735537]
[1759331462481,16.96022235,219.08,219.03,32.38]
[1759331462681,16.96022235,219.08,219.03,33.06]
[1759331462895,16.96022235,219.08,219.03,32.38]
[1759331463093,16.96022235,219.08,219.04,0.68]
[1759331463405,16.96022235,219.08,219.02,27.41735537]
[1759331463606,16.26022235,219.08,219.03,33.06]
[1759331463804,16.96022235,219.08,219.04,0.68]
[1759331464197,16.26022235,219.08,219.04,0.68]
[1759331464398,0.7,219.07,219.03,32.38]
[1759331465182,16.26022235,219.08,219.02,27.41735537]
[1759331465183,2.05291326,219.05,219.02,27.41735537]
[1759331465383,2.05291326,219.07,219.03,33.04]
[1759331465587,4.84886577,219.08,219.04,0.68]
[1759331465908,0.7,219.07,219.03,32.36]
[1759331466099,0.7,219.06,219.03,32.36]
[1759331466679,4.56516776,219.05,219.03,32.36]
[1759331467413,5.26516776,219.05,219.03,32.36]
[1759331468483,4.56475099,219.07,219.03,32.36]
[1759331468699,5.26475099,219.07,219.03,32.36]
[1759331468906,0.28432314,219.08,219.03,32.36]
[1759331469101,5.54892437,219.08,219.03,32.36]
[1759331469291,2.05291326,219.07,219.04,0.68]
[1759331469703,21.08432314,219.08,219.04,0.68]
[1759331470097,21.08432314,219.08,219.05,0.68]
[1759331470293,0.98432314,219.08,219.06,32.36]
[1759331470503,0.28432314,219.08,219.06,32.36]
[1759331471012,0.28432314,219.08,219.04,0.68]
[1759331471189,27.70178023,219.08,219.07,32.36]
[1759331471393,28.40178023,219.08,219.07,32.36]
[1759331471794,27.70178023,219.08,219.07,32.36]
[1759331472793,28.40178023,219.08,219.07,32.36]
[1759331474802,26.34886697,219.08,219.07,32.36]
[1759331474992,0.28432314,219.07,219.02,27.41735537]
[1759331475187,0.7,219.06,219.02,59.75735537]
[1759331475392,0.28432314,219.05,219.03,33.02]
[1759331475587,0.28432314,219.05,219.03,32.34]
[1759331476021,0.28432314,219.05,219.03,33.02]
[1759331476614,0.28432314,219.05,219.03,32.34]
[1759331476800,0.28432314,219.05,219.03,33.02]
[1759331477002,2.05291326,219.06,219.03,32.34]
[1759331477210,2.05291326,219.06,219.04,0.68]
[1759331477519,6.61779338,219.07,219.04,0.68]
[1759331478018,6.61779338,219.07,219.03,32.34]
[1759331478205,6.61779338,219.07,219.05,0.68]
[1759331478400,7.60211652,219.07,219.06,32.32]
[1759331478607,7.60211652,219.07,219.02,28.09735537]
[1759331478916,7.60211652,219.07,219.03,0.68]
[1759331479118,7.60211652,219.07,219.04,32.32]
[1759331479321,7.60211652,219.07,219.04,33.0]
[1759331479322,6.90211652,219.07,219.04,33.0]
[1759331479525,6.90211652,219.07,219.02,27.41735537]
[1759331479526,7.60211652,219.07,219.02,28.09735537]
[1759331479727,7.60211652,219.07,219.03,32.98]
[1759331480028,6.90211652,219.07,219.03,32.98]
[1759331480222,6.90211652,219.07,219.03,0.16]
[1759331480402,6.90211652,219.07,219.04,32.3]
[1759331480732,7.57211652,219.07,219.04,32.3]
[1759331481230,2.3372364,219.07,219.05,32.3]
[1759331481727,0.28432314,219.06,219.02,27.41735537]
[1759331481907,2.05291326,219.05,219.03,32.3]
[1759331483220,6.61828786,219.05,219.03,32.3]
[1759331483904,0.28432314,219.06,219.03,32.3]
[1759331484229,0.28432314,219.06,219.03,32.98]
[1759331484423,2.05291326,219.07,219.04,0.68]
[1759331484719,27.41746668,219.08,219.05,0.68]
[1759331484950,27.41746668,219.08,219.06,32.28]
[1759331486224,20.8,219.08,219.06,32.28]
[1759331486424,20.8,219.08,219.03,5.24553932]
[1759331486425,22.85291326,219.08,219.03,4.74553932]
[1759331486602,0.5,219.11,219.03,15.97950087]
[1759331487623,2.55291326,219.11,219.04,32.28]
[1759331487802,2.55291326,219.11,219.04,34.33291326]
[1759331488128,2.55291326,219.11,219.05,4.56516776]
[1759331488431,2.55291326,219.11,219.05,4.94516776]
[1759331488733,0.5,219.11,219.06,0.38]
[1759331488933,0.5,219.11,219.07,32.28]
[1759331489108,5.06396269,219.11,219.07,32.28]
[1759331489434,5.75396269,219.11,219.08,32.28]
[1759331489624,5.06396269,219.11,219.08,32.28]
[1759331490129,7.11687595,219.11,219.08,32.28]
[1759331490728,7.11687595,219.11,219.09,32.26]
[1759331491222,2.55291326,219.11,219.09,32.26]
[1759331491541,0.97432314,219.1,219.03,4.94556519]
[1759331491708,0.97432314,219.1,219.04,32.26]
[1759331492110,0.5,219.11,219.05,4.94516776]
[1759331492305,0.5,219.11,219.06,0.38]
[1759331492528,0.5,219.11,219.05,4.56516776]
[1759331492529,0.5,219.11,219.07,32.64]
[1759331492815,0.5,219.11,219.08,0.38]
[1759331493021,0.14216157,219.15,219.09,0.38]
[1759331493219,2.19507483,219.15,219.09,32.64]
[1759331493513,2.88507483,219.15,219.09,32.64]
[1759331494113,7.4481716,219.15,219.09,37.20424677]
[1759331494947,2.05291326,219.15,219.09,37.20424677]
[1759331495447,2.05291326,219.16,219.1,0.38]
[1759331495813,23.84665257,219.19,219.1,0.38]
[1759331495814,3.04665257,219.19,219.1,0.38]
[1759331496017,2.74291326,219.18,219.1,0.38]
[1759331496269,2.05291326,219.17,219.11,4.56391766]
[1759331496418,6.61563105,219.17,219.11,4.56391766]
[1759331496742,2.74291326,219.16,219.12,32.24]
[1759331497038,2.74291326,219.16,219.13,32.24]
[1759331497337,2.74291326,219.16,219.14,32.24]
[1759331498245,7.30590267,219.16,219.14,32.24]
[1759331498832,7.30590267,219.16,219.15,32.24]
[1759331499620,5.25298941,219.16,219.15,32.24]
[1759331499926,7.30590267,219.16,219.15,32.24]
[1759331500130,7.30590267,219.16,219.08,0.38]
[1759331500333,2.05291326,219.14,219.09,32.22]
[1759331500545,2.74291326,219.14,219.09,32.22]
[1759331500853,16.94450364,219.16,219.09,32.6]
[1759331501043,2.05291326,219.14,219.09,32.6]
[1759331501341,2.05291326,219.15,219.09,32.6]
[1759331501540,2.74291326,219.15,219.09,32.6]
[1759331502649,4.56329287,219.14,219.1,32.2]
[1759331503028,5.25329287,219.14,219.1,32.2]
[1759331503552,7.30620613,219.14,219.11,32.18]
[1759331503849,3.0272364,219.13,219.06,13.7089588]
[1759331504049,3.0272364,219.13,218.98,35.6]
[1759331504050,2.05291326,219.1,219.03,0.38]
[1759331504249,0.69,219.12,219.03,0.38]
[1759331504250,2.05291326,219.11,219.04,32.18]
[1759331504427,2.05291326,219.11,219.05,0.38]
[1759331504850,2.74291326,219.12,219.05,0.38]
[1759331505146,0.28432314,219.13,219.05,0.38]
[1759331505147,0.69,219.11,219.05,0.38]
[1759331505351,2.74291326,219.11,219.05,0.38]
[1759331505950,7.30691417,219.11,219.05,4.94503]
[1759331506348,0.69,219.1,219.04,32.18]
[1759331506525,2.74291326,219.1,219.04,32.18]
[1759331506723,4.0,219.06,219.04,32.18]
[1759331506927,4.0,219.06,219.04,37.12534281]
[1759331507222,4.0,219.06,219.05,0.38]
[1759331507427,4.0,219.06,219.05,13.97559401]
[1759331507848,4.0,219.06,219.05,18.54076177]
[1759331510854,4.0,219.06,219.05,23.10409266]
[1759331512561,4.0,219.06,219.05,22.72409266]
[1759331512744,4.0,219.06,219.05,54.88409266]
[1759331512938,0.69,219.1,219.06,13.59559401]
[1759331513156,0.69,219.09,219.06,13.59559401]
[1759331513440,4.56376292,219.12,219.07,32.16]
[1759331513441,0.72,219.08,219.07,32.16]
[1759331514468,0.72,219.08,219.04,4.06529249]
[1759331514644,0.28432314,219.11,219.04,4.06529249]
[1759331514645,3.20782892,219.11,219.04,4.06529249]
[1759331514839,0.72,219.11,219.04,4.06529249]
[1759331515045,0.72,219.11,219.04,4.44529249]
[1759331515352,0.72,219.11,219.05,13.59559401]
[1759331515546,0.72,219.13,219.06,32.16]
[1759331515855,5.28352046,219.13,219.07,4.56475099]
[1759331516363,0.72,219.12,219.07,4.56475099]
[1759331516563,0.72,219.11,219.07,4.56475099]
[1759331517560,7.77133246,219.13,219.07,4.56475099]
[1759331517747,0.72,219.1,219.06,32.16]
[1759331517950,4.56374736,219.12,219.05,13.59559401]
[1759331518152,5.28374736,219.12,219.05,13.97559401]
[1759331518354,5.28374736,219.12,219.06,32.16]
[1759331518552,0.72,219.12,219.06,36.72486173]
[1759331519155,0.72,219.12,219.06,4.56486173]
[1759331519355,0.72,219.11,219.07,32.14]
[1759331519556,0.72,219.1,219.07,32.14]
[1759331519756,0.72,219.1,219.07,36.70474297]
[1759331520044,0.72,219.09,219.08,32.14]
[1759331520239,0.72,219.11,219.08,32.14]
[1759331520465,3.92782892,219.1,219.04,4.56525692]
[1759331520652,3.92782892,219.09,219.02,31.98296002]
[1759331520851,0.72,219.08,219.03,32.14]
[1759331521064,0.72,219.07,219.03,32.14]
[1759331521367,0.72,219.06,219.03,32.14]
[1759331521568,8.7,219.06,219.04,32.14]
[1759331521942,7.98,219.06,219.04,36.70521924]
[1759331522663,8.7,219.06,219.04,32.14]
[1759331523066,7.98,219.06,219.04,32.14]
[1759331523361,7.98,219.06,219.04,36.7053515]
[1759331524569,7.98,219.06,219.05,32.16]
[1759331524943,8.7,219.06,219.02,31.98301777]
[1759331525153,0.72,219.05,219.03,32.16]
[1759331525346,7.98,219.06,219.03,32.16]
[1759331525548,7.98,219.06,219.05,34.39559401]
[1759331525749,7.98,219.06,219.05,34.77559401]
[1759331525969,0.72,219.16,219.05,34.77559401]
[1759331526146,0.72,219.16,219.08,13.59559401]
[1759331526351,0.72,219.16,219.09,32.3]
[1759331527948,0.72,219.15,219.09,32.3]
[1759331528164,4.56320293,219.15,219.05,20.8]
[1759331528367,0.72,219.14,219.06,45.89559401]
[1759331528556,0.72,219.14,219.06,62.2529518]
[1759331528950,0.72,219.13,219.06,62.2529518]
[1759331529151,0.72,219.12,219.05,20.8]
[1759331529361,3.92782892,219.11,219.03,13.59559401]
[1759331529550,0.28432314,219.14,219.04,32.3]
[1759331529551,0.72,219.1,219.04,32.3]
[1759331529751,0.72,219.12,219.04,32.68]
[1759331529993,0.72,219.11,219.04,32.68]
[1759331530267,3.20782892,219.09,219.05,32.32]
[1759331530563,0.72,219.08,219.05,32.32]
[1759331531760,0.72,219.07,219.05,32.32]
[1759331532364,4.56432125,219.1,219.05,36.88513389]
[1759331532365,3.92782892,219.1,219.05,36.88513389]
[1759331532554,0.72,219.09,219.05,36.88513389]
[1759331532956,0.72,219.08,219.05,32.32]
[1759331533270,3.20782892,219.06,219.02,27.41735537]
[1759331533470,0.72,219.05,219.03,32.3]
[1759331533670,0.72,219.04,219.03,32.3]
[1759331533978,4.56535688,219.05,219.03,32.3]
[1759331534271,5.28535688,219.05,219.03,32.3]
[1759331534774,4.56535688,219.05,219.03,32.3]
[1759331534947,0.72,219.04,219.02,27.41735537]
[1759331535152,0.72,219.04,219.03,32.3]
[1759331535562,0.72,219.04,219.02,27.41735537]
[1759331535764,0.72,219.03,219.02,27.41735537]
[1759331535965,0.72,219.03,219.02,59.71735537]
[1759331537359,8.7,219.03,219.02,59.71735537]
[1759331537878,16.75773668,219.03,219.02,59.71735537]
[1759331542169,16.75773668,219.03,219.02,27.41735537]
[1759331542351,16.75773668,219.03,219.02,59.73735537]
[1759331542965,8.77773668,219.03,219.02,59.73735537]
[1759331544564,5.56990776,219.03,219.02,59.73735537]
[1759331544881,8.77773668,219.03,219.02,59.73735537]
[1759331545964,8.77773668,219.03,219.02,27.41735537]
[1759331546168,8.77773668,219.03,219.02,59.71735537]
[1759331547574,8.77773668,219.03,219.02,27.41735537]
[1759331547774,8.77773668,219.03,219.02,59.71735537]
[1759331548666,25.64990776,219.03,219.02,59.71735537]
[1759331548866,28.85773668,219.03,219.02,59.71735537]
[1759331549374,29.51773668,219.03,219.02,59.71735537]
[1759331549578,28.85773668,219.03,219.02,59.71735537]
[1759331549765,4.84990776,219.03,219.02,59.71735537]
[1759331549963,8.05773668,219.03,219.02,59.71735537]
[1759331550182,4.84990776,219.03,219.02,59.71735537]
[1759331550364,8.05773668,219.03,219.02,59.71735537]
[1759331550764,28.85773668,219.03,219.02,59.71735537]
[1759331551986,29.51773668,219.03,219.02,59.71735537]
[1759331552864,25.64990776,219.03,219.02,59.71735537]
[1759331553066,28.85773668,219.03,219.02,59.71735537]
[1759331553986,29.51773668,219.03,219.02,59.71735537]
[1759331554196,28.85773668,219.03,219.02,59.71735537]
[1759331554402,29.51773668,219.03,219.02,59.71735537]
[1759331555192,26.30990776,219.03,219.02,59.71735537]
[1759331555378,29.51773668,219.03,219.02,59.71735537]
[1759331556303,26.30990776,219.03,219.02,59.71735537]
[1759331556478,29.51773668,219.03,219.02,27.41735537]
[1759331556677,29.51773668,219.03,219.02,59.67735537]
[1759331557101,28.85773668,219.03,219.02,59.67735537]
[1759331557483,29.51773668,219.03,219.02,59.67735537]
[1759331560093,25.36558462,219.03,219.02,27.41735537]
[1759331560292,3.20782892,219.06,219.02,59.65735537]
[1759331560478,7.77257991,219.07,219.03,0.38]
[1759331560674,7.77257991,219.07,219.04,32.24]